[Event "Indian Rapid Championship 2023-24"]
[Site "Nashik"]
[Date "2024.03.05"]
[Round "8.3"]
[White "Hari Madhavan N B"]
[Black "Prraneeth Vuppala"]
[Result "1/2-1/2"]
[ECO "B51"]
[WhiteElo "2395"]
[BlackElo "2506"]
[Annotator "TA"]
[PlyCount "165"]
[EventDate "2024.03.02"]
[EventType "swiss"]
[EventCountry "IND"]
[SourceTitle "playchess.com"]
[Source "ChessBase"]
[SourceQuality "1"]
[TimeControl "900+10"]

{[%evp 77,165,-48,0,0,0,-164,0,0,0,0,0,0,0,0,0,0,0,0,8,10,10,3,3,0,0,0,0,0,0,0,0,0,0,0,0,0,0,-11,54,53,55,61,49,-10,-11,-14,-14,-16,0,0,0,0,0,-275,-267,-267,-267,-29966,-29966,-29966,-29965,-29964,-29968,-29968,-29969,-29970,-29971,-29971,-29971,-29971,-29972,-29979,-29974,-29976,-29977,-29976,-29956,-29955,-29957,-12850,0,0,0,0,0,0,0,0,0,0]} 1. e4 {[%emt 0:01:09]} c5 {[%emt 0:00:16]} 2. Nf3 {[%emt 0:00:03]} d6 {[%emt 0:00:03]} 3. Bb5+ {[%emt 0:00:02]} Nd7 {[%emt 0:00:19]} 4. a4 {[%emt 0:00:10]} Ngf6 {[%emt 0:00:16]} 5. Nc3 {[%emt 0:00:02]} a6 {[%emt 0:00:32]} 6. Bc4 {[%emt 0:00:11] B51: Sizilianisch (Rossolimo-Variante).} e6 {[%emt 0:00:11]} 7. d3 {[%emt 0:00:03]} Be7 {[%emt 0:00:23]} 8. O-O {[%emt 0:00:04]} O-O {[%emt 0:00:03]} 9. h3 {[%emt 0:00:12]} b6 {[%emt 0:00:24]} 10. Bb3 {[%emt 0:01:49]} Bb7 {[%emt 0:00:18]} 11. Qe2 {[%emt 0:00:25]} h6 $146 {[%emt 0:01:30]} ({Predecessor:} 11... Rc8 12. Bf4 Qc7 13. Bd2 Rfd8 {½-½ Van Esbroeck,J (1420)-Endean,A (1586) LSS SC-2010-0-00060}) 12. Nh2 {[%emt 0:00:24]} Ne5 {[%emt 0:01:45]} 13. f4 {[%emt 0:00:08]} Nc6 {[%emt 0:00:03]} 14. Nf3 {[%emt 0:00:02]} Nd4 {[%emt 0:02:38]} 15. Nxd4 {[%emt 0:00:14]} cxd4 {[%emt 0:00:01]} 16. Nd1 {[%emt 0:00:22]} Nd7 {[%emt 0:00:12]} 17. c3 {[%emt 0:00:49]} dxc3 {[%emt 0:00:40]} 18. bxc3 {[%emt 0:00:03]} d5 {[%emt 0:00:28]} 19. e5 {[%emt 0:00:21]} Nc5 {[%emt 0:00:13]} 20. Bc2 {[%emt 0:00:05]} d4 {[%emt 0:00:04]} 21. Bb2 {[%emt 0:00:35]} dxc3 {[%emt 0:00:37]} 22. Bxc3 {[%emt 0:00:02]} Qd5 {[%emt 0:00:32]} 23. Ne3 {[%emt 0:01:23]} Qc6 {[%emt 0:00:02]} 24. Rfc1 {[%emt 0:00:41]} Ne4 {[%emt 0:00:54]} 25. Be1 {[%emt 0:01:48]} Nc3 {[%emt 0:00:07]} 26. Qd2 {[%emt 0:01:40]} Bc5 {[%emt 0:01:01]} 27. Bf2 {[%emt 0:00:02]} Bd4 {[%emt 0:00:14]} 28. Bd1 {[%emt 0:00:28]} Rab8 {[%emt 0:03:15]} 29. Bf3 {[%emt 0:00:28]} Qc5 {[%emt 0:00:15]} 30. Bxb7 {[%emt 0:00:16]} Rxb7 {[%emt 0:00:01]} 31. Nd1 {[%emt 0:00:29]} Bxf2+ {[%emt 0:01:11]} 32. Nxf2 {[%emt 0:00:03]} Rc7 {[%emt 0:00:21]} 33. d4 {[%emt 0:01:53]} Qc4 {[%emt 0:00:01]} 34. Kh1 {[%emt 0:00:05]} Rfc8 {[%emt 0:00:50]} 35. Qe3 {[%emt 0:01:01]} Qd5 {[%emt 0:01:02]} 36. Ng4 {[%emt 0:00:41]} h5 {[%emt 0:00:11]} 37. Nf2 {[%emt 0:00:31]} b5 {[%emt 0:00:12]} 38. axb5 {[%emt 0:00:12]} Qxb5 {[%emt 0:00:06]} 39. Qf3 {[%emt 0:00:45]} Ne2 {[%emt 0:00:12]} (39... Qb6 $15 {sieht stärker aus.}) 40. Rxc7 $11 {[%emt 0:00:18]} Rxc7 {[%emt 0:00:01]} 41. Ne4 $2 {[%emt 0:00:47]} (41. Kh2 $11) 41... Nxd4 $2 {[%emt 0:00:13]} (41... Qb2 $19 42. Rf1 Rc1 (42... Nxd4 43. Qd1 $17)) 42. Qxh5 $11 {[%emt 0:00:02]} Nf5 {[%emt 0:00:08]} 43. Rd1 {[%emt 0:00:18]} Rd7 {[%emt 0:00:13]} 44. Rc1 {[%emt 0:00:14]} Qb7 {[%emt 0:00:15]} 45. Kh2 {[%emt 0:00:05]} Rd8 {[%emt 0:00:11]} (45... Qxe4 46. Rc8+) 46. Ng5 {[%emt 0:00:16]} Nh6 {[%emt 0:00:04]} 47. Qe2 {[%emt 0:00:12]} Qb4 {[%emt 0:00:04]} 48. Qe4 {[%emt 0:00:16]} (48. Qxa6 Qxf4+ 49. g3 Qd2+ (49... Qxc1 50. Ne4 Qc2+ 51. Kg1 Rd1+ 52. Qf1 Rxf1+ 53. Kxf1 Qxe4 54. g4 Qe3 55. Kg2 Qf4 56. Kg1 Qf3 57. Kh2 Qf2+ 58. Kh1 g5 59. h4 Nxg4 60. hxg5 Qh2#) 50. Kg1 Qxc1+ 51. Qf1 Rd1 (51... Qxg5 $2 52. Qf4 $19) (51... Qxg5 {ist ein Selbstmatt.} 52. Qf2 Rd1+ 53. Kg2 Rd2 54. g4 Nf5 55. Kf3 Rxf2+ 56. Kxf2 Qd2+ 57. Kf3 Qe3+ 58. Kg2 Qe2+ 59. Kh1 Nh4 60. g5 Qg2#)) 48... Qxe4 {[%emt 0:00:11]} 49. Nxe4 {[%emt 0:00:01]} Nf5 {[%emt 0:00:08]} 50. Rc4 {[%emt 0:00:15]} Rd4 {[%emt 0:00:11]} 51. Rc8+ {[%emt 0:00:28]} Kh7 {[%emt 0:00:01]} 52. Ng5+ {[%emt 0:00:06]} Kg6 {[%emt 0:00:02]} 53. Rc7 {[%emt 0:00:01]} Nh6 {[%emt 0:00:35]} 54. Kg3 {[%emt 0:00:01]} a5 {[%emt 0:00:04]} 55. Ra7 {[%emt 0:00:04]} a4 {[%emt 0:00:02]} 56. Kf3 {[%emt 0:00:23]} Rd3+ {[%emt 0:00:05]} 57. Ke4 {[%emt 0:00:04]} Ra3 {[%emt 0:00:22]} (57... Rg3 $11) 58. g4 $14 {[%emt 0:00:13]} Ra1 {[%emt 0:00:18]} 59. Kf3 {[%emt 0:00:35]} a3 {[%emt 0:00:08]} 60. h4 {[%emt 0:00:24]} (60. Kg3 $14) 60... Rf1+ $11 {[%emt 0:00:12]} 61. Kg3 {[%emt 0:00:01]} Rg1+ {[%emt 0:00:08]} 62. Kf3 {[%emt 0:00:01]} Rxg4 {[%emt 0:00:15]} 63. Nxf7 $1 {[%emt 0:00:02]} Rxh4 {[%emt 0:00:11]} 64. Nxh6 {[%emt 0:00:01]} Rxh6 {[%emt 0:00:09]} 65. Kg3 $2 {[%emt 0:00:01][%mdl 8192]} (65. Kg4 $11 {und Weiss ist OK.}) 65... Kf5 $1 $19 {[%emt 0:00:06]} 66. Rf7+ {[%emt 0:00:36]} Ke4 {[%emt 0:00:15]} 67. Rxg7 $2 {[%emt 0:00:01] [#]} (67. Ra7 $19) 67... Rg6+ $1 {[%emt 0:00:12]} 68. Rxg6 {[%emt 0:00:01]} a2 {[%emt 0:00:01]} 69. Rxe6 {[%emt 0:00:08]} a1=Q {[%emt 0:00:01]} ({Minderwertig wäre} 69... a1=B 70. Ra6 Bd4 71. e6 Bf6 72. e7 Bxe7 73. Re6+ Kd5 74. Rxe7) 70. Rf6 {[%emt 0:00:04]} Qg1+ {[%emt 0:00:21]} 71. Kh4 {[%emt 0:00:10]} Kf3 {[%emt 0:00:08]} 72. Kh5 {[%emt 0:00:02]} Qg7 {[%emt 0:00:02]} 73. Rg6 {[%emt 0:00:11] [#]} Qf7 $1 {[%emt 0:00:21]} 74. e6 {[%emt 0:00:32]} Qxf4 {[%emt 0:00:07]} 75. Rg5 {[%emt 0:00:04]} Qe4 {[%emt 0:00:09]} 76. Rg6 {[%emt 0:00:04]} Qe3 {[%emt 0:00:10]} 77. Rf6+ {[%emt 0:00:10]} Ke4 {[%emt 0:00:02]} 78. Kg6 {[%emt 0:00:02]} Kd5 $2 {[%emt 0:00:06]} (78... Qb3 $19 {( -> ...Ke5)} 79. Kg7 Qb4) 79. Kf7 $1 $11 {[%emt 0:00:01]} Kd6 {[%emt 0:00:10]} (79... Ke5 $5 80. e7 $8 Qb3+ 81. Kg7 Qb5 $11) 80. e7+ $1 {[%emt 0:00:03]} Kd7 {[%emt 0:00:03]} 81. Rd6+ $1 {[%emt 0:00:01]} Kxd6 {[%emt 0:00:07]} 82. e8=Q {[%emt 0:00:03]} Qxe8+ {[%emt 0:00:07]} 83. Kxe8 {[%emt 0:00:01]} 1/2-1/2

[Event "Indian Rapid Championship 2023-24"]
[Site "Nashik"]
[Date "2024.03.05"]
[Round "8.4"]
[White "Raja Rithvik R"]
[Black "Das, Arghyadip"]
[Result "1-0"]
[ECO "E04"]
[WhiteElo "2532"]
[BlackElo "2405"]
[Annotator "RC"]
[PlyCount "107"]
[EventDate "2024.03.02"]
[EventType "swiss"]
[EventCountry "IND"]
[SourceTitle "playchess.com"]
[Source "ChessBase"]
[SourceQuality "1"]
[TimeControl "900+10"]

1. d4 {[%emt 0:00:06]} e6 {[%emt 0:00:02]} 2. c4 {[%emt 0:00:02]} Nf6 {[%emt 0:00:03]} 3. Nf3 {[%emt 0:00:11]} d5 {[%emt 0:00:05]} 4. g3 {[%emt 0:00:01]} dxc4 {[%emt 0:01:06]} 5. Bg2 {[%emt 0:00:02]} Bb4+ {[%emt 0:00:10]} 6. Bd2 {[%emt 0:00:03]} a5 {[%emt 0:00:28]} 7. Qc2 {[%emt 0:00:42]} b5 {[%emt 0:00:46]} 8. a4 {[%emt 0:00:05]} Bxd2+ {[%emt 0:00:29]} 9. Nfxd2 {[%emt 0:00:10]} Ra7 {[%emt 0:01:10]} 10. axb5 {[%emt 0:00:02]} Qxd4 {[%emt 0:00:03]} 11. O-O {[%emt 0:02:09]} O-O {[%emt 0:00:42]} 12. Nxc4 {[%emt 0:00:44]} Qc5 {[%emt 0:00:54]} 13. Nba3 {[%emt 0:00:02]} Nbd7 {[%emt 0:01:31]} 14. Rfc1 {[%emt 0:00:29]} Qb4 {[%emt 0:00:14]} 15. Qc3 {[%emt 0:01:38]} Nd5 {[%emt 0:05:12]} 16. Qxb4 {[%emt 0:05:15]} Nxb4 {[%emt 0:00:25]} 17. Nc2 {[%emt 0:00:08]} Nxc2 {[%emt 0:00:05]} 18. Rxc2 {[%emt 0:00:01]} a4 {[%emt 0:00:01]} 19. Rc3 {[%emt 0:00:22]} Bb7 {[%emt 0:00:25]} 20. Bxb7 {[%emt 0:02:32]} Rxb7 {[%emt 0:00:01]} 21. Na3 {[%emt 0:00:01]} Nb6 {[%emt 0:01:09]} 22. Rac1 {[%emt 0:00:01]} Rc8 {[%emt 0:00:02]} 23. e4 {[%emt 0:01:09]} Kf8 {[%emt 0:00:02]} 24. f4 {[%emt 0:00:47]} Ke7 {[%emt 0:00:00]} 25. Kf2 {[%emt 0:00:01]} Kd7 {[%emt 0:00:01]} 26. Rd3+ {[%emt 0:00:54]} Ke7 {[%emt 0:00:01]} 27. Ke3 {[%emt 0:00:00]} h5 {[%emt 0:00:18]} 28. Rc5 {[%emt 0:00:12]} Rh8 {[%emt 0:00:21]} 29. h4 {[%emt 0:00:13]} Nd7 {[%emt 0:00:38]} 30. Rc4 {[%emt 0:00:17]} Nb6 {[%emt 0:00:08]} 31. Rc6 {[%emt 0:00:04]} Rd8 {[%emt 0:01:11]} 32. Rxd8 {[%emt 0:00:09]} Kxd8 {[%emt 0:00:01]} 33. Kd4 {[%emt 0:00:09]} Ra7 {[%emt 0:00:38]} 34. Kc3 {[%emt 0:00:18]} Nc8 {[%emt 0:00:23]} 35. Nc4 {[%emt 0:00:34]} Ne7 {[%emt 0:01:37]} 36. Ra6 {[%emt 0:00:58]} Rxa6 {[%emt 0:00:22]} 37. bxa6 {[%emt 0:00:02]} Kc8 {[%emt 0:00:01]} 38. Kb4 {[%emt 0:00:05]} Kb8 {[%emt 0:00:02]} 39. Kxa4 {[%emt 0:00:05]} Nc6 {[%emt 0:00:10]} 40. Ne5 {[%emt 0:00:35]} Nd4 {[%emt 0:00:06]} 41. Nxf7 {[%emt 0:00:12]} Ka7 {[%emt 0:00:00]} 42. Ka5 {[%emt 0:00:11]} Nc6+ {[%emt 0:00:06]} 43. Kb5 {[%emt 0:00:02]} Nd4+ {[%emt 0:00:00]} 44. Kc5 {[%emt 0:00:13]} Ne2 {[%emt 0:00:01]} 45. Ng5 {[%emt 0:00:15]} Nxg3 {[%emt 0:00:24]} 46. Kd4 {[%emt 0:00:05]} Nf1 {[%emt 0:00:23]} 47. Nxe6 {[%emt 0:00:08]} Nd2 {[%emt 0:00:01]} 48. Nxg7 {[%emt 0:00:15]} Nf3+ {[%emt 0:00:01]} 49. Kd5 {[%emt 0:00:10]} Nxh4 {[%emt 0:00:10]} 50. Nxh5 {[%emt 0:00:01]} Kxa6 {[%emt 0:00:02]} 51. Kc6 {[%emt 0:00:03]} Nf3 {[%emt 0:00:13]} 52. e5 {[%emt 0:00:05]} Nd4+ {[%emt 0:00:05]} 53. Kxc7 {[%emt 0:00:07]} Kb5 {[%emt 0:00:01]} 54. Kd7 {[%emt 0:00:01]} 1-0

[Event "Indian Rapid Championship 2023-24"]
[Site "Nashik"]
[Date "2024.03.05"]
[Round "8.5"]
[White "Sriram, Jha"]
[Black "Kushagra Mohan"]
[Result "1/2-1/2"]
[ECO "D38"]
[WhiteElo "2312"]
[BlackElo "2351"]
[Annotator "TA"]
[PlyCount "65"]
[EventDate "2024.03.02"]
[EventType "swiss"]
[EventCountry "IND"]
[SourceTitle "playchess.com"]
[Source "ChessBase"]
[SourceQuality "1"]
[TimeControl "900+10"]

{[%evp 23,65,50,45,20,11,11,39,30,263,0,27,-42,74,0,9,21,67,46,82,60,54,64,172,110,194,191,197,189,231,224,403,108,118,120,188,90,105,91,101,0,0,0,0,0]} 1. d4 {[%emt 0:00:05]} Nf6 {[%emt 0:00:02]} 2. Nf3 {[%emt 0:00:03]} e6 {[%emt 0:00:06]} 3. c4 {[%emt 0:00:06]} d5 {[%emt 0:00:03]} 4. Bg5 {[%emt 0:00:25]} Nbd7 {[%emt 0:00:21]} 5. cxd5 {[%emt 0:00:20]} exd5 {[%emt 0:00:03]} 6. Nc3 {[%emt 0:00:03]} Bb4 {[%emt 0:00:06]} 7. e3 {[%emt 0:00:24]} c5 {[%emt 0:00:04]} 8. Bd3 {[%emt 0:00:16]} Qa5 {[%emt 0:00:07]} 9. Qc2 {[%emt 0:00:12]} c4 {[%emt 0:00:12]} 10. Bf5 {[%emt 0:00:02]} O-O {[%emt 0:00:03]} 11. O-O {[%emt 0:00:07]} g6 {[%emt 0:00:07]} 12. Bxd7 {[%emt 0:00:20]} Nxd7 {[%emt 0:00:02]} 13. Nd2 {[%emt 0:00:52]} Nb6 {[%emt 0:01:14]} 14. e4 {[%emt 0:02:12][%cal Od2b3] Repels Bf5} dxe4 {[%emt 0:00:18]} 15. Ndxe4 {[%emt 0:00:26] Excellent horsemanship. White is slightly better.} Bf5 $2 {[%emt 0:00:29]} (15... Bxc3 $11 {and Black has nothing to worry.} 16. bxc3 (16. Qxc3 Qxc3 17. Nxc3 f6 $11) 16... Nd5) 16. Bh6 $2 {[%emt 0:01:25]} (16. Nf6+ $18 Kh8 17. Qc1) 16... Rfd8 {[%emt 0:01:03]} 17. Rad1 {[%emt 0:01:31]} (17. Nf6+ $11 Kh8 18. Qc1) 17... Nd7 {[%emt 0:01:01] [#]} (17... Bxc3 $15 {stays ahead.} 18. Qxc3 Qxc3 19. Nxc3 (19. Nf6+ Kh8 $11) 19... Rd7) 18. Rfe1 {[%emt 0:01:05]} ({White should play} 18. f3 $1 $16) 18... Re8 $1 $11 {[%emt 0:00:33][%cal Oe8e4] aiming for ...Rxe4!} 19. f3 {[%emt 0:00:25]} Bxe4 {[%emt 0:03:07]} (19... Re6 $11 {might be stronger.}) 20. fxe4 $14 {[%emt 0:00:20]} Qh5 {[%emt 0:00:04]} 21. Bf4 $36 {[%emt 0:00:36][%mdl 2048] White has some pressure.} Qg4 {[%emt 0:00:04]} 22. Rf1 {[%emt 0:00:42] And now Nd5 would win.} Rac8 {[%emt 0:00:31]} (22... Bxc3 $14 23. bxc3 Qe6) 23. e5 {[%emt 0:00:22]} (23. Nd5 $18 Ba5 24. Qa4) 23... f6 {[%emt 0:01:59] [#]} (23... Bxc3 $16 24. Qxc3 (24. bxc3 Nb6 $16) 24... b5) 24. Nd5 $1 $18 {[%emt 0:00:26][%csl LRb4,LRf6]} fxe5 {[%emt 0:00:35]} 25. Bxe5 {[%emt 0:00:19]} Bf8 {[%emt 0:00:54] Black is weak on the dark squares} 26. Qf2 {[%emt 0:00:47]} Qf5 {[%emt 0:02:08]} (26... Rxe5 {was necessary.} 27. Qf7+ (27. dxe5 Bc5 $18) 27... Kh8) 27. Qxf5 $2 {[%emt 0:00:16]} (27. Qh4 $18 {and the rest is easy.} g5 28. Rxf5 gxh4 29. Rg5+ Kf7 30. Rf1+ Ke6 31. Nc7+ Ke7 32. Bf4) 27... gxf5 $16 {[%emt 0:00:00]} 28. Rxf5 {[%emt 0:00:01]} Re6 {[%emt 0:00:01]} (28... Rc6 $16 29. Rdf1 Nxe5 30. dxe5 (30. Rxe5 Rxe5 31. dxe5 Bc5+ 32. Kh1 Re6 $11) 30... Bg7) 29. Rg5+ {[%emt 0:00:39]} (29. Nf4 $18 {is more deadly.} Ra6 30. Rg5+ Kf7 31. Rf1) 29... Rg6 {[%emt 0:00:02]} 30. Rxg6+ {[%emt 0:00:09]} hxg6 {[%emt 0:00:01]} 31. Nf6+ {[%emt 0:00:36]} ({White should try} 31. Bf4 $16) 31... Nxf6 $11 {[%emt 0:00:04]} 32. Bxf6 {[%emt 0:00:01]} Kf7 {[%emt 0:00:13]} 33. Bg5 {[%emt 0:00:45] Weighted Error Value: White=0.71/Black=0.67.  Loses game:     	---       	Black=1      Missed win:     	White=2     	---        Mistake:       	White=5     	Black=6      Inaccurate:     	---       	Black=3      OK:         	White=4     	Black=4      Best:        	---       	Black=1      Strong:       	---       	Black=1} 1/2-1/2

[Event "Indian Rapid Championship 2023-24"]
[Site "Nashik"]
[Date "2024.03.05"]
[Round "8.6"]
[White "Utsab Chatterjee"]
[Black "Sengupta, Deep"]
[Result "0-1"]
[ECO "C07"]
[WhiteElo "2301"]
[BlackElo "2500"]
[Annotator "TA"]
[PlyCount "60"]
[EventDate "2024.03.02"]
[EventType "swiss"]
[EventCountry "IND"]
[SourceTitle "playchess.com"]
[Source "ChessBase"]
[SourceQuality "1"]
[TimeControl "900+10"]

{[%evp 14,60,28,36,25,19,27,19,20,24,23,0,17,1,0,0,0,-46,-16,-27,-22,-30,-13,-32,-17,-22,-12,-39,0,0,-22,0,-19,-87,-104,-118,-134,-146,-132,-315,-316,-941,-937,-927,-920,-907,-904,-860,-860]} 1. e4 {[%emt 0:00:02]} e6 {[%emt 0:00:02]} 2. d4 {[%emt 0:00:02]} d5 {[%emt 0:00:01]} 3. Nd2 {[%emt 0:00:03]} c5 {[%emt 0:00:13]} 4. exd5 {[%emt 0:00:04]} Qxd5 {[%emt 0:00:02]} 5. Ngf3 {[%emt 0:00:02]} cxd4 {[%emt 0:00:11]} 6. Bc4 {[%emt 0:00:02]} Qd8 {[%emt 0:00:01]} 7. O-O {[%emt 0:00:04]} Nc6 {[%emt 0:00:09]} 8. Nb3 {[%emt 0:00:02][%cal Od1e2]} a6 {[%emt 0:01:00]} 9. Nbxd4 {[%emt 0:00:03]} Nxd4 {[%emt 0:00:02]} 10. Nxd4 {[%emt 0:00:02]} Qc7 {[%emt 0:00:02] The position is equal.} 11. Bd3 {[%emt 0:00:26]} Bd6 {[%emt 0:00:23]} 12. h3 {[%emt 0:01:03]} Ne7 {[%emt 0:00:26][%cal Bg8e7,Be7g6,Bg6h4][%mdl 32]} 13. c3 {[%emt 0:00:34]} Bd7 {[%emt 0:00:27]} 14. Qe2 {[%emt 0:01:50]} Ng6 {[%emt 0:03:04]} 15. Nf5 {[%emt 0:01:30]} (15. Qd1 $11) 15... Be5 {[%emt 0:02:00]} 16. f4 {[%emt 0:00:17]} Bf6 {[%emt 0:01:29]} 17. Ng3 {[%emt 0:00:04]} O-O-O {[%emt 0:00:12]} 18. Be3 {[%emt 0:00:35]} Bc6 {[%emt 0:00:12]} 19. Rad1 {[%emt 0:02:11]} Nh4 {[%emt 0:00:28]} 20. Rf2 {[%emt 0:01:40]} Rd7 {[%emt 0:01:04]} 21. Nh5 {[%emt 0:00:53]} Rhd8 {[%emt 0:00:55][%cal Oc6b5] ...Bb5! is the strong threat.} 22. Nxf6 {[%emt 0:00:05]} gxf6 {[%emt 0:00:01]} 23. Bd4 {[%emt 0:00:03] [#]} (23. Kh2 $1 $11) 23... Rg8 $1 $36 {[%emt 0:00:47][%mdl 2048] Black has strong initiative.} 24. Be4 {[%emt 0:00:02] [#]} e5 $1 {[%emt 0:02:31]} 25. fxe5 {[%emt 0:01:33]} (25. Bxh7 $2 {is the wrong capture.} Rg3 (25... Rxg2+ 26. Rxg2 Bxg2 27. Qf2 $11) 26. Be4 exd4 27. cxd4 Bxe4 28. Qxe4 f5) 25... fxe5 {[%emt 0:00:01]} 26. Bxc6 $2 {[%emt 0:03:48] This costs White the game.} (26. Rc1 $17 {was called for.} exd4 27. cxd4 Rxd4 28. Bxc6 bxc6 29. Qxa6+ Kb8 30. Kh1) 26... Qxc6 $19 {[%emt 0:00:13]} 27. Qxe5 $2 {[%emt 0:01:36]} (27. Kh2) 27... Rxg2+ {[%emt 0:00:11] Black is clearly winning.} ({And not} 27... Nxg2 28. Kh2 Nh4 29. Rg1 Nf3+ 30. Rxf3 Rxg1 31. Qe8+ Kc7 32. Kxg1 $11 (32. Qe5+ Kc8 $11)) 28. Kf1 {[%emt 0:00:01]} Rxf2+ {[%emt 0:00:10]} 29. Kxf2 {[%emt 0:00:02]} Qg2+ {[%emt 0:01:03]} 30. Ke3 {[%emt 0:00:01] [#]} Re7 $3 {[%emt 0:00:02][%mdl 512] Weighted Error Value: White=0.52/Black=0.05 (flawless) .  Loses game:     	White=1     	---        Mistake:       	White=3     	---        Inaccurate:     	White=1     	Black=1      OK:         	White=4     	Black=6      Best:        	White=2     	Black=1      Strong:       	---       	Black=2} 0-1

[Event "Indian Rapid Championship 2023-24"]
[Site "Nashik"]
[Date "2024.03.05"]
[Round "8.7"]
[White "Srihari L R"]
[Black "Raahul V S"]
[Result "1-0"]
[ECO "A13"]
[WhiteElo "2490"]
[BlackElo "2314"]
[Annotator "TA"]
[PlyCount "83"]
[EventDate "2024.03.02"]
[EventType "swiss"]
[EventCountry "IND"]
[SourceTitle "playchess.com"]
[Source "ChessBase"]
[SourceQuality "1"]
[TimeControl "900+10"]

{[%evp 17,83,25,31,29,32,48,43,16,38,33,37,20,39,22,60,40,69,77,59,57,70,73,87,87,125,122,254,158,164,48,48,50,55,0,0,0,0,0,58,63,66,67,70,43,115,95,191,199,189,187,207,210,222,208,223,202,201,212,212,201,200,194,275,215,227,185,251,248]} 1. c4 {[%emt 0:00:23]} e6 {[%emt 0:00:04]} 2. Nf3 {[%emt 0:00:22]} d5 {[%emt 0:00:02]} 3. e3 {[%emt 0:00:04]} Nf6 {[%emt 0:00:02]} 4. Nc3 {[%emt 0:00:01]} c5 {[%emt 0:00:14]} 5. cxd5 {[%emt 0:00:04]} Nxd5 {[%emt 0:00:03]} 6. Nxd5 {[%emt 0:00:32]} Qxd5 {[%emt 0:00:16]} 7. b3 {[%emt 0:00:05]} Be7 {[%emt 0:00:37]} 8. Bb2 {[%emt 0:00:04]} O-O {[%emt 0:00:03]} 9. Bc4 {[%emt 0:00:01]} Qd8 {[%emt 0:00:04]} 10. O-O {[%emt 0:01:40]} b6 {[%emt 0:00:14]} 11. Qe2 {[%emt 0:00:30]} Bb7 {[%emt 0:00:02]} 12. Rfd1 {[%emt 0:00:04] White is slightly better.} Nc6 {[%emt 0:02:53]} 13. d4 {[%emt 0:00:49]} Qc7 {[%emt 0:00:11]} 14. Rac1 {[%emt 0:01:14]} Rad8 {[%emt 0:00:20]} 15. h3 {[%emt 0:01:51]} h6 {[%emt 0:00:48]} 16. Bb5 {[%emt 0:02:24]} Qb8 {[%emt 0:04:00][%cal Oa7a6]} 17. Bxc6 {[%emt 0:01:27]} Bxc6 {[%emt 0:00:02]} 18. Ne5 {[%emt 0:00:01]} Be8 {[%emt 0:01:55]} 19. dxc5 {[%emt 0:00:45]} Bxc5 {[%emt 0:00:42]} 20. Qg4 {[%emt 0:00:09] White is much more active.} f5 {[%emt 0:00:10]} 21. Qc4 {[%emt 0:00:16]} Rf6 {[%emt 0:01:17]} (21... Kh7 $16 {was necessary.} 22. Nd3 (22. Qxe6 Rf6 $18) 22... Be7 23. Qxe6 Qd6 24. Qxd6 Bxd6) 22. b4 {[%emt 0:02:31]} Bd6 {[%emt 0:00:44]} 23. Nc6 {[%emt 0:00:26]} ({White should play} 23. Nf3 $18 Rf8 24. Qxe6+ Kh7 25. Be5 Bxe5 26. Rxd8 (26. Nxe5 Rf6 $18) (26. Qxe5 Qxe5 27. Nxe5 Rxd1+ 28. Rxd1 Ba4 $14) 26... Bh2+ 27. Kh1 Qxd8 28. Kxh2) 23... Bxc6 $1 $14 {[%emt 0:00:02]} 24. Bxf6 {[%emt 0:00:09]} (24. Qxc6 {simplifies} Rf7 25. Qc4 Re7 26. Kf1) 24... Bd5 {[%emt 0:00:02] A strong pair of Bishops.} 25. Bxd8 {[%emt 0:02:26]} ({White should try} 25. Rxd5 $14 Bh2+ 26. Kh1 Rxd5 27. e4 fxe4 28. Qxe4) 25... Bxc4 $11 {[%emt 0:00:02]} 26. Rxc4 {[%emt 0:00:01][%cal Oc4c6]} Qxd8 {[%emt 0:00:38]} 27. Rcd4 $1 {[%emt 0:00:02]} Qf6 {[%emt 0:00:12]} 28. Rxd6 $14 {[%emt 0:00:01][%mdl 4096] Endgame. KQ-KRR} Qb2 {[%emt 0:00:02][%csl LRa2,LRb4]} 29. Rxe6 {[%emt 0:00:37]} Qxb4 {[%emt 0:00:02]} 30. Red6 {[%emt 0:00:19]} (30. Rd7 {seems wilder.} Qb1+ 31. Kh2 Qxa2 32. Ree7) 30... a5 {[%emt 0:00:20]} (30... Qa3 $14) 31. R6d4 $16 {[%emt 0:02:43]} Qb2 {[%emt 0:02:35]} (31... Qa3 $16) 32. a4 $18 {[%emt 0:00:00]} Qc2 {[%emt 0:00:14]} 33. R1d2 {[%emt 0:00:00]} Qc3 {[%emt 0:00:20]} 34. Kh2 {[%emt 0:00:00]} Kh7 {[%emt 0:00:05]} 35. g3 {[%emt 0:00:00]} Qc1 {[%emt 0:00:07]} 36. Kg2 {[%emt 0:00:00]} Qc6+ {[%emt 0:00:03] [#]} 37. Kg1 $1 {[%emt 0:00:00]} Qc1+ {[%emt 0:00:12]} 38. Rd1 {[%emt 0:00:00]} Qc2 {[%emt 0:00:03]} 39. h4 {[%emt 0:00:00]} Qc6 {[%emt 0:00:44]} (39... Kg8 {might work better.} 40. Rd8+ Kh7) 40. Rf4 {[%emt 0:00:00]} Kg6 {[%emt 0:00:08]} 41. Kh2 {[%emt 0:00:00]} Qc5 {[%emt 0:00:36] [#]} (41... b5 $142) 42. Rb1 $1 {[%emt 0:00:00] Weighted Error Value: White=0.19 (very precise) /Black=0.24 (precise) .  Mistake:       	White=2     	Black=6      Inaccurate:     	White=3     	Black=3      OK:         	White=11    	Black=7      Best:        	White=3     	Black=4      Strong:       	White=3     	Black=1} 1-0